bitfinex/quotes_SOLUSD_20230904
["timestamp","ask_amount","ask_price","bid_price","bid_amount"]
[1693785600512,26.35,19.58,19.564,150.516631]
[1693785605123,41.82061829,19.59,19.57,26.35]
[1693785605337,26.35,19.59,19.571,168.28968154]
[1693785605512,26.35,19.59,19.571,193.90448142]
[1693785605830,28.64112721,19.59,19.571,138.692611]
[1693785606123,28.64112721,19.59,19.571,113.07781112]
[1693785606826,55.0,19.589,19.571,113.07781112]
[1693785608520,26.35,19.58,19.571,58.07781112]
[1693785608831,26.35,19.58,19.565,119.79447042]
[1693785609127,26.35,19.58,19.566,20.0]
[1693785610426,26.35,19.58,19.567,55.0]
[1693785610625,120.79432281,19.588,19.568,20.0]
[1693785610929,55.0,19.587,19.569,55.0]
[1693785611936,95.4576,19.588,19.569,55.0]
[1693785612624,95.4576,19.588,19.57,26.35]
[1693785612828,95.4576,19.588,19.571,113.07781112]
[1693785613036,95.4576,19.588,19.571,193.90448142]
[1693785613232,2.29112721,19.595,19.571,193.90448142]
[1693785613434,22.29112721,19.595,19.571,193.90448142]
[1693785614316,22.29112721,19.595,19.572,11.81919]
[1693785614528,22.29112721,19.595,19.573,193.90448142]
[1693785614721,22.29112721,19.595,19.573,168.28968154]
[1693785615244,22.29112721,19.595,19.574,37.43277988]
[1693785615427,22.29112721,19.595,19.575,66.81738]
[1693785615630,22.29112721,19.595,19.575,92.43217988]
[1693785615827,22.29112721,19.595,19.576,11.81678]
[1693785616132,22.29112721,19.595,19.577,55.0]
[1693785616519,37.44281259,19.595,19.577,66.81617]
[1693785619730,37.44281259,19.595,19.578,11.81557]
[1693785619917,37.44281259,19.595,19.579,55.0]
[1693785620320,37.44281259,19.595,19.578,11.81557]
[1693785620517,2.29112721,19.593,19.578,11.81557]
[1693785620720,22.29112721,19.593,19.578,11.81557]
[1693785621934,22.29112721,19.593,19.579,55.0]
[1693785622742,26.35,19.59,19.579,55.0]
[1693785656507,2.29112721,19.595,19.58,26.35]
[1693785656696,2.29112721,19.595,19.581,55.0]
[1693785656993,2.29112721,19.599,19.581,55.0]
[1693785657695,57.29112721,19.599,19.581,81.35]
[1693785660186,56.79112721,19.599,19.582,0.5]
[1693785665597,1.79112721,19.599,19.582,0.5]
[1693785666701,27.12785002,19.599,19.582,0.5]
[1693785666901,55.0,19.598,19.582,0.5]
[1693785667102,1.79112721,19.597,19.582,0.5]
[1693785670006,1.79112721,19.599,19.582,0.5]
[1693785671803,56.79112721,19.599,19.582,0.5]
[1693785672517,1.79112721,19.599,19.582,0.5]
[1693785674407,56.79112721,19.599,19.582,0.5]
[1693785678204,1.79112721,19.599,19.582,0.5]
[1693785678403,56.79112721,19.599,19.582,0.5]
[1693785697321,56.79112721,19.599,19.582,55.5]
[1693785698112,1.79112721,19.599,19.582,55.5]
[1693785698304,56.79112721,19.599,19.582,55.5]
[1693785699024,98.2912,19.598,19.582,113.57781112]
[1693785699330,1.79112721,19.597,19.582,151.005771]
[1693785699625,1.79112721,19.599,19.584,0.5]
[1693785699825,1.79112721,19.599,19.584,55.5]
[1693785701321,1.79112721,19.599,19.584,81.11479988]
[1693785701619,1.79112721,19.606,19.591,0.5]
[1693785701821,1.79112721,19.606,19.592,25.61479988]
[1693785702021,1.79112721,19.609,19.594,0.5]
[1693785702725,1.79112721,19.609,19.594,55.5]
[1693785703021,1.79112721,19.609,19.595,55.0]
[1693785703224,1.79112721,19.609,19.596,0.5]
[1693785703611,90.5775,19.608,19.596,0.5]
[1693785703907,1.79112721,19.607,19.596,0.5]
[1693785709530,1.79112721,19.607,19.595,0.5]
[1693785709831,1.79112721,19.609,19.595,0.5]
[1693785710037,1.79112721,19.605,19.595,0.5]
[1693785713227,1.79112721,19.605,19.592,0.5]
[1693785713430,56.79112721,19.605,19.592,0.5]
[1693785713726,56.79112721,19.605,19.592,58.577811]
[1693785713727,94.5342,19.604,19.592,58.577811]
[1693785713933,1.79112721,19.603,19.592,58.577811]
[1693785714125,1.79112721,19.608,19.592,58.577811]
[1693785717337,26.35,19.6,19.592,0.5]
[1693785717534,26.35,19.6,19.59,0.5]
[1693785717740,26.35,19.6,19.59,58.577811]
[1693785717934,92.3184,19.599,19.59,58.577811]
[1693785718522,26.35,19.6,19.59,58.577811]
[1693785721542,26.35,19.6,19.59,0.5]
[1693785721929,26.35,19.6,19.588,0.5]
[1693785722343,93.5297,19.599,19.588,0.5]
[1693785722848,93.5297,19.599,19.588,58.577811]
[1693785723042,93.5297,19.599,19.589,20.0]
[1693785723346,26.35,19.6,19.59,0.5]
[1693785723644,55.0,19.598,19.587,0.5]
[1693785723843,1.79112721,19.597,19.586,0.5]
[1693785724136,93.5297,19.597,19.586,0.5]
[1693785724343,1.79112721,19.596,19.586,0.5]
[1693785725538,1.79112721,19.596,19.583,0.5]
[1693785725743,1.79112721,19.599,19.588,0.5]
[1693785726938,1.79112721,19.597,19.588,0.5]
[1693785727530,91.3314,19.598,19.588,0.5]
[1693785727731,1.79112721,19.597,19.588,0.5]
[1693785727942,91.3314,19.598,19.588,0.5]
[1693785728737,1.79112721,19.597,19.588,0.5]
[1693785728938,91.3314,19.598,19.588,0.5]
[1693785732551,91.3314,19.598,19.584,26.02904498]
[1693785732752,91.3314,19.598,19.585,55.0]
[1693785732952,91.3314,19.598,19.586,0.5]
[1693785736641,91.3314,19.598,19.586,26.02904498]
[1693785736842,91.3314,19.598,19.587,158.6068561]
[1693785737051,91.3314,19.598,19.588,0.5]
[1693785737346,26.35,19.6,19.59,0.5]
[1693785737544,26.35,19.6,19.59,55.5]
[1693785737944,26.35,19.6,19.59,81.85]
[1693785738153,1.79112721,19.605,19.59,81.85]
[1693785738354,56.79112721,19.605,19.59,81.85]
[1693785743358,71.8860736,19.605,19.59,81.85]
[1693785745560,71.8860736,19.605,19.59,26.85]
[1693785753266,92.594,19.604,19.59,26.85]
[1693785753468,1.79112721,19.603,19.59,26.85]
[1693785753850,1.79112721,19.604,19.59,26.85]
[1693785761382,1.79112721,19.604,19.591,55.0]
[1693785761587,1.79112721,19.604,19.592,0.5]
[1693785761785,1.79112721,19.609,19.592,26.02904498]
[1693785763071,56.79112721,19.609,19.592,26.02904498]
[1693785764475,98.13875354,19.609,19.592,26.02904498]
[1693785767473,98.13875354,19.609,19.593,55.0]
[1693785767679,98.13875354,19.609,19.594,0.5]
[1693785768196,43.13875354,19.609,19.594,0.5]
[1693785770791,1.79112721,19.609,19.594,26.02904498]
[1693785770999,1.79112721,19.609,19.595,80.52904498]
[1693785771203,1.79112721,19.609,19.596,0.5]
[1693785771496,1.79112721,19.609,19.596,26.02904498]
[1693785771803,1.79112721,19.609,19.598,0.5]
[1693785771985,1.79112721,19.609,19.597,55.0]
[1693785772180,1.79112721,19.609,19.598,0.5]
[1693785772383,97.1146,19.619,19.601,0.5]
[1693785772384,1.79112721,19.614,19.601,0.5]
[1693785772591,4.29112721,19.618,19.601,113.57781112]
[1693785772789,101.40572721,19.618,19.601,113.57781112]
[1693785773683,4.29112721,19.616,19.601,113.57781112]
[1693785777300,4.29112721,19.616,19.601,0.5]
[1693785777605,4.29112721,19.616,19.599,0.5]
[1693785777902,4.29112721,19.616,19.599,55.5]
[1693785780405,4.29112721,19.616,19.6,25.52904498]
[1693785780599,4.29112721,19.616,19.601,55.5]
[1693785787497,4.29112721,19.616,19.601,0.5]
[1693785787900,91.4632,19.615,19.601,0.5]
[1693785788106,4.29112721,19.614,19.6,55.5]
[1693785789107,4.29112721,19.616,19.6,55.5]
[1693785789312,26.35,19.61,19.6,55.5]
[1693785791812,26.35,19.61,19.6,0.5]
[1693785792317,4.29112721,19.609,19.597,0.5]
[1693785793304,4.29112721,19.609,19.597,55.5]
[1693785793803,26.35,19.61,19.597,55.5]
[1693785794002,26.35,19.61,19.597,0.5]
[1693785794202,4.29112721,19.609,19.597,0.5]
[1693785795303,4.29112721,19.609,19.595,0.5]
[1693785795503,4.29112721,19.609,19.595,55.5]
[1693785796018,4.29112721,19.609,19.595,81.85]
[1693785803313,26.35,19.61,19.595,81.85]
[1693785803523,1.79112721,19.609,19.595,81.85]
[1693785806027,66.64387755,19.61,19.595,81.85]
[1693785806228,1.79112721,19.609,19.595,81.85]
[1693785806524,55.0,19.609,19.595,26.85]
[1693785806915,66.64387755,19.61,19.595,26.85]
[1693785807728,1.79112721,19.609,19.595,26.85]
[1693785809309,55.0,19.609,19.595,26.85]
[1693785809514,55.0,19.609,19.595,52.37904498]
[1693785809715,66.64387755,19.61,19.595,52.37904498]
[1693785809924,1.79112721,19.609,19.595,52.37904498]
[1693785813429,56.79112721,19.609,19.595,52.37904498]
[1693785813626,56.79112721,19.609,19.595,0.5]
[1693785818939,55.0,19.609,19.595,0.5]
[1693785819142,1.79112721,19.608,19.595,0.5]
[1693785824034,1.79112721,19.608,19.592,0.5]
[1693785827040,1.79112721,19.608,19.592,55.5]
[1693785828242,1.79112721,19.608,19.592,81.02904498]
[1693785830248,17.01471066,19.608,19.592,81.02904498]
[1693785830437,55.0,19.607,19.592,81.02904498]
[1693785832241,1.79112721,19.606,19.592,81.02904498]
[1693785832443,55.0,19.607,19.592,81.02904498]
[1693785838448,55.0,19.607,19.592,26.02904498]
[1693785839442,1.79112721,19.606,19.592,26.02904498]
[1693785841057,1.79112721,19.606,19.592,84.1068561]
[1693785841246,55.0,19.607,19.592,84.1068561]
[1693785841962,47.5,19.607,19.592,84.1068561]
[1693785842960,89.05589585,19.607,19.592,84.1068561]
[1693785843649,1.79112721,19.606,19.594,0.5]
[1693785844051,89.05589585,19.607,19.594,0.5]
[1693785844259,1.79112721,19.606,19.594,0.5]
[1693785844667,89.05589585,19.607,19.594,0.5]
[1693785844851,1.79112721,19.606,19.594,0.5]
[1693785845053,89.05589585,19.607,19.594,0.5]
[1693785845252,1.79112721,19.606,19.594,0.5]
[1693785845455,89.05589585,19.607,19.594,0.5]
[1693785846670,1.79112721,19.606,19.594,0.5]
[1693785849762,89.05589585,19.607,19.594,0.5]
[1693785851761,1.79112721,19.606,19.594,0.5]
[1693785856459,89.05589585,19.607,19.594,0.5]
[1693785861383,1.79112721,19.606,19.594,0.5]
[1693785862473,93.9807,19.606,19.594,0.5]
[1693785864785,1.79112721,19.605,19.594,0.5]
[1693785865084,93.9807,19.606,19.594,0.5]
[1693785867901,26.35,19.61,19.595,58.07781112]
[1693785868086,26.35,19.61,19.596,55.5]
[1693785868282,26.35,19.61,19.597,25.52904498]
[1693785868501,26.35,19.61,19.598,55.5]
[1693785870093,26.64120267,19.615,19.598,55.5]
[1693785870094,40.53905052,19.614,19.598,55.5]
[1693785870288,40.53905052,19.614,19.601,0.5]
[1693785870495,4.15924426,19.618,19.601,55.5]
[1693785870697,4.15924426,19.619,19.601,55.5]
[1693785872991,59.15924426,19.619,19.601,55.5]
[1693785873804,4.15924426,19.617,19.601,55.5]
[1693785874011,59.15924426,19.617,19.601,55.5]
[1693785874603,59.15924426,19.617,19.601,0.5]
[1693785874914,59.15924426,19.617,19.601,55.5]
[1693785881111,59.15924426,19.617,19.6,26.35]
[1693785881312,59.15924426,19.617,19.599,20.0]
[1693785881509,59.15924426,19.617,19.6,55.0]
[1693785885009,59.15924426,19.617,19.6,54.5]
[1693785885618,100.18373405,19.617,19.6,54.5]
[1693785887517,100.18373405,19.617,19.6,54.0]
[1693785888514,100.18373405,19.617,19.599,20.0]
[1693785890012,100.18373405,19.617,19.6,55.0]
[1693785890817,100.18373405,19.617,19.599,20.0]
[1693785893317,100.18373405,19.617,19.6,55.0]
[1693785914229,4.15924426,19.617,19.601,58.07781112]
[1693785914416,4.15924426,19.617,19.602,55.0]
[1693785914622,4.15924426,19.617,19.603,83.6068561]
[1693785914930,83.39693876,19.62,19.604,55.0]
[1693785915127,3.28929791,19.619,19.604,55.0]
[1693785915334,3.28929791,19.619,19.604,80.52904498]
[1693785924543,3.28929791,19.619,19.605,25.52904498]
[1693785924733,3.28929791,19.619,19.606,55.0]
[1693785929942,3.28929791,19.619,19.605,25.52904498]
[1693785930247,3.28929791,19.619,19.604,58.07781112]
[1693785930544,3.28929791,19.619,19.602,80.529045]
[1693785930732,58.28929791,19.619,19.601,11.8017]
[1693785931438,3.79112721,19.617,19.601,57.330745]
[1693785931632,58.79112721,19.617,19.601,57.330745]
[1693785932049,58.79112721,19.617,19.602,55.0]
[1693785944165,99.33370752,19.617,19.602,55.0]
[1693785946368,99.33370752,19.617,19.601,57.330745]
[1693785946562,99.33370752,19.617,19.602,55.0]
[1693785956358,99.33370752,19.617,19.601,57.330745]
[1693785969760,99.33370752,19.617,19.601,11.8017]
[1693785970975,99.33370752,19.617,19.599,78.077811]
[1693785971277,99.33370752,19.617,19.599,136.15562212]
[1693785972365,99.33370752,19.617,19.599,161.6846671]
[1693785978279,99.33370752,19.617,19.599,103.6068561]
[1693785978581,26.35,19.61,19.594,58.07781112]
[1693785978786,3.79112721,19.609,19.594,58.07781112]
[1693785979083,58.79112721,19.609,19.594,58.07781112]
[1693785979579,158.04872721,19.609,19.594,58.07781112]
[1693785992091,213.32015576,19.609,19.594,58.07781112]
[1693785996201,213.32015576,19.609,19.592,26.35]
[1693786000505,213.32015576,19.609,19.591,25.52904498]
[1693786009924,213.32015576,19.609,19.592,55.0]
[1693786010220,213.32015576,19.609,19.592,80.52904498]
[1693786011809,213.32015576,19.609,19.592,25.52904498]
[1693786022627,213.32015576,19.609,19.59,109.95733302]
[1693786028135,213.32015576,19.609,19.59,84.42828804]
[1693786028816,213.32015576,19.609,19.59,58.07828804]
[1693786029822,213.32015576,19.609,19.59,84.42828804]
[1693786030523,213.32015576,19.609,19.591,58.07828804]
[1693786046950,213.32015576,19.609,19.592,55.0]
[1693786054351,158.32015576,19.609,19.592,55.0]
[1693786054537,158.32015576,19.609,19.593,58.07828804]
[1693786054738,158.32015576,19.609,19.594,55.0]
[1693786095975,158.32015576,19.609,19.593,83.60733302]
[1693786096179,3.79112721,19.607,19.593,58.07828804]
[1693786096360,3.79112721,19.607,19.59,87.41821882]
[1693786096560,3.79112721,19.607,19.591,55.0]
[1693786098682,3.79112721,19.607,19.591,113.07828804]
[1693786107991,3.79112721,19.607,19.591,168.34971604]
[1693786109785,3.79112721,19.607,19.591,113.34971604]
[1693786110002,11.74712721,19.607,19.591,113.34971604]
[1693786110286,3.79112721,19.599,19.583,58.07828804]
[1693786110488,58.79112721,19.599,19.58,26.35]
[1693786110883,66.75012721,19.599,19.58,58.078288]
[1693786111185,66.75012721,19.599,19.578,25.52904498]
[1693786111186,3.79112721,19.597,19.578,25.52904498]
[1693786111399,58.79112721,19.597,19.579,20.0]
[1693786111980,58.79112721,19.597,19.579,61.391836]
[1693786113287,26.35,19.59,19.579,61.391836]
[1693786113486,26.35,19.59,19.579,20.0]
[1693786119589,26.35,19.59,19.574,58.07828804]
[1693786119790,55.0,19.589,19.574,58.07828804]
[1693786119986,62.963,19.589,19.574,58.07828804]
[1693786120189,55.0,19.589,19.574,58.07828804]
[1693786121996,7.964,19.588,19.57,51.87904498]
[1693786122198,26.35,19.58,19.569,58.07828804]
[1693786136416,26.35,19.58,19.566,141.68562102]
[1693786136605,62.963,19.589,19.567,20.0]
[1693786145527,26.67970423,19.588,19.567,20.0]
[1693786145726,55.0,19.587,19.567,20.0]
[1693786147526,51.03,19.586,19.567,20.0]
[1693786147711,51.03,19.584,19.567,20.0]
[1693786147911,51.03,19.582,19.567,20.0]
[1693786148422,55.0,19.581,19.567,20.0]
[1693786154326,26.35,19.58,19.566,83.60733302]
[1693786154530,55.0,19.579,19.566,58.07828804]
[1693786154715,55.0,19.579,19.562,25.52904498]
[1693786154915,55.0,19.579,19.563,55.0]
[1693786155131,55.0,19.579,19.564,55.0]
[1693786155333,55.0,19.579,19.563,55.0]
[1693786157131,123.5304,19.58,19.564,58.07828804]
[1693786157436,123.5304,19.58,19.565,55.0]
[1693786158315,123.5304,19.58,19.565,80.52904498]
[1693786171939,123.5304,19.58,19.565,25.52904498]
[1693786172141,55.0,19.579,19.565,25.52904498]
[1693786176134,55.0,19.579,19.564,58.07828804]
[1693786176335,55.0,19.579,19.561,109.13637798]
[1693786176536,55.0,19.579,19.561,167.21466602]
[1693786176737,55.0,19.579,19.562,58.07828804]
[1693786177339,55.0,19.579,19.562,83.60733302]
[1693786177541,55.0,19.579,19.563,55.0]
[1693786180458,55.0,19.579,19.564,58.07828804]
[1693786180639,55.0,19.579,19.565,55.0]
[1693786183046,123.5304,19.58,19.565,55.0]
[1693786183246,97.1804,19.58,19.566,58.07828804]
[1693786183554,97.1804,19.58,19.567,55.0]
[1693786183753,97.1804,19.58,19.567,138.60733302]
[1693786214993,97.1804,19.58,19.567,83.60733302]
[1693786215183,55.0,19.579,19.561,141.68562104]
[1693786216499,55.0,19.579,19.562,55.0]
[1693786219706,55.0,19.579,19.562,113.07828804]
[1693786226503,55.0,19.579,19.562,58.07828804]
[1693786227211,55.0,19.579,19.562,116.15657604]
[1693786227904,55.0,19.579,19.563,55.0]
[1693786231813,55.0,19.579,19.562,116.15657604]
[1693786232015,55.0,19.579,19.562,58.07828804]
[1693786239104,55.0,19.579,19.56,26.35]
[1693786241607,55.0,19.579,19.56,80.23217693]
[1693786241813,55.0,19.579,19.561,108.88217693]
[1693786249934,51.03,19.578,19.561,108.88217693]
[1693786250121,106.03,19.577,19.561,108.88217693]
[1693786250434,55.0,19.576,19.561,108.88217693]
[1693786250937,51.03,19.575,19.561,53.88217693]
[1693786251118,55.0,19.574,19.561,53.88217693]
[1693786251433,26.35,19.57,19.55,26.35]
[1693786251939,55.0,19.569,19.55,80.23217693]
[1693786252126,150.8794,19.569,19.55,80.23217693]
[1693786252329,150.8794,19.569,19.55,135.23217693]
[1693786253542,150.8794,19.569,19.551,55.0]
[1693786255132,150.8794,19.569,19.55,176.9376984]
[1693786255335,150.8794,19.569,19.55,135.23217693]
[1693786259531,150.8794,19.569,19.55,80.23217693]
[1693786260344,166.00062761,19.569,19.55,80.23217693]
[1693786263338,206.76584499,19.569,19.55,80.23217693]
[1693786264347,151.76584499,19.569,19.55,80.23217693]
[1693786264533,151.76584499,19.569,19.551,55.0]
[1693786264849,151.76584499,19.569,19.551,108.88217693]
[1693786265846,111.00062761,19.569,19.552,53.88217693]
[1693786266049,111.00062761,19.569,19.553,55.0]
[1693786267333,55.0,19.568,19.553,55.0]
[1693786273737,95.8794,19.569,19.553,108.88217693]
[1693786273940,26.35,19.58,19.56,26.35]
[1693786274143,117.1919,19.58,19.561,55.0]
[1693786275240,55.0,19.579,19.561,55.0]
[1693786293268,55.0,19.579,19.56,26.35]
[1693786293464,62.967,19.579,19.556,173.366747]
[1693786293672,62.967,19.579,19.557,20.0]
[1693786293673,88.26977813,19.579,19.557,20.0]
[1693786294255,80.30277813,19.579,19.555,20.0]
[1693786294678,80.30277813,19.579,19.556,55.0]
[1693786294858,80.30277813,19.579,19.557,20.0]
[1693786295462,26.6932509,19.578,19.558,55.0]
[1693786295683,55.0,19.577,19.559,20.0]
[1693786296671,26.35,19.57,19.559,20.0]
[1693786296859,26.35,19.57,19.554,350.77626928]
[1693786296860,26.35,19.57,19.555,20.0]
[1693786297680,26.35,19.57,19.555,75.0]
[1693786297971,26.35,19.57,19.556,55.0]
[1693786298173,26.35,19.57,19.557,20.0]
[1693786300378,26.35,19.57,19.556,20.0]
[1693786300563,26.35,19.57,19.555,20.0]
[1693786300764,26.35,19.57,19.555,73.88217693]
[1693786301473,26.35,19.57,19.556,55.0]
[1693786301772,26.35,19.57,19.557,20.0]
[1693786303058,173.36674661,19.58,19.557,20.0]
[1693786303263,173.36674661,19.58,19.56,26.35]
[1693786304581,55.0,19.579,19.56,26.35]
[1693786305584,173.36674661,19.58,19.56,26.35]
[1693786305783,26.35,19.59,19.57,26.35]
[1693786306077,91.6919,19.588,19.57,26.35]
[1693786307969,55.0,19.587,19.57,26.35]
[1693786320278,91.6919,19.588,19.57,26.35]
[1693786320483,91.6919,19.588,19.571,115.16551026]
[1693786321073,91.6919,19.588,19.571,60.16551026]
[1693786321267,26.35,19.59,19.571,60.16551026]
[1693786321884,55.0,19.589,19.571,60.16551026]
[1693786322279,98.0303,19.588,19.571,60.16551026]
[1693786322480,55.0,19.587,19.571,60.16551026]
[1693786322880,153.0303,19.587,19.571,60.16551026]
[1693786334487,98.0303,19.587,19.571,60.16551026]
[1693786334691,138.2754481,19.587,19.572,55.0]
[1693786335490,153.32447771,19.587,19.572,55.0]
[1693786345503,153.32447771,19.587,19.571,60.16551026]
[1693786345699,153.32447771,19.587,19.572,55.0]
[1693786347711,113.07932961,19.587,19.572,55.0]
[1693786349217,113.07932961,19.587,19.572,115.165511]
[1693786350009,15.04902961,19.587,19.572,115.165511]
[1693786353018,95.1111,19.589,19.572,115.165511]
[1693786353217,15.64997444,19.592,19.572,175.33102126]
[1693786353419,15.64997444,19.592,19.58,26.35]
[1693786353799,3.79112721,19.599,19.581,55.0]
[1693786354723,45.44587694,19.599,19.581,55.0]
[1693786354925,55.0,19.598,19.581,55.0]
[1693786355112,3.79112721,19.597,19.581,55.0]
[1693786357615,3.79112721,19.598,19.581,55.0]
[1693786357819,3.79112721,19.598,19.581,120.0872]
[1693786376935,58.79112721,19.598,19.581,65.0872]
[1693786378431,58.79112721,19.598,19.582,55.0]
[1693786379936,3.79112721,19.598,19.582,55.0]
[1693786391541,3.79112721,19.598,19.581,65.0872]
[1693786391740,58.79112721,19.598,19.581,65.0872]
[1693786392743,58.79112721,19.598,19.582,55.0]
[1693786396746,99.88964685,19.598,19.582,55.0]
[1693786400347,3.79112721,19.598,19.59,26.35]
[1693786400650,401.4,19.606,19.591,55.0]
[1693786400835,3.79112721,19.605,19.591,55.0]
[1693786401151,401.4,19.615,19.591,55.0]
[1693786401152,3.79112721,19.609,19.591,124.09464692]
[1693786401939,3.79112721,19.609,19.591,214.34094692]
[1693786404449,3.79112721,19.609,19.6,26.35]
[1693786404640,3.79112721,19.615,19.601,55.0]
[1693786404840,4.94461036,19.618,19.601,55.0]
[1693786405856,4.94461036,19.616,19.601,55.0]
[1693786406058,4.94461036,19.616,19.601,81.35]
[1693786410461,55.0,19.615,19.601,26.35]
[1693786410754,4.94461036,19.614,19.601,26.35]
[1693786423768,20.37318177,19.614,19.601,26.35]
[1693786438777,20.37318177,19.614,19.6,26.35]
[1693786439084,55.0,19.613,19.593,15.68265305]
[1693786439382,55.0,19.613,19.594,20.0]
[1693786439383,4.94461036,19.612,19.594,20.0]
[1693786439683,55.0,19.611,19.594,20.0]
[1693786439876,4.94461036,19.61,19.594,20.0]
[1693786440063,4.94461036,19.61,19.595,55.0]
[1693786440380,55.0,19.611,19.596,20.0]
[1693786440578,2.62791014,19.61,19.596,20.0]
[1693786455671,3.79112721,19.613,19.6,26.35]
[1693786456873,3.79112721,19.613,19.601,55.0]
[1693786457378,15.42857141,19.614,19.601,55.0]
[1693786457579,3.17992264,19.613,19.601,55.0]
[1693786474494,3.17992264,19.613,19.6,26.35]
[1693786475291,3.17992264,19.613,19.6,82.537368]
[1693786475495,3.17992264,19.613,19.601,55.0]
[1693786493416,56.18736793,19.614,19.601,55.0]
[1693786493617,3.20284102,19.613,19.601,55.0]
[1693786494308,3.20284102,19.613,19.6,82.537368]
[1693786502927,3.20284102,19.613,19.601,55.0]
[1693786503128,15.42857141,19.614,19.601,55.0]
[1693786503814,3.20284102,19.613,19.601,55.0]
[1693786504221,15.42857141,19.614,19.601,55.0]
[1693786505015,3.20284102,19.618,19.601,156.8753919]
[1693786505216,3.20284102,19.618,19.602,64.54464692]
[1693786505416,3.20284102,19.618,19.603,55.0]
[1693786506022,15.06578275,19.623,19.61,26.35]
[1693786506328,4.94461036,19.629,19.611,55.0]
[1693786507324,4.94461036,19.629,19.611,81.63306]
[1693786507826,4.94461036,19.627,19.611,81.63306]
[1693786508619,4.94461036,19.629,19.611,81.63306]
[1693786509832,4.94461036,19.627,19.611,81.63306]
[1693786518622,4.94461036,19.625,19.611,81.63306]
[1693786518821,4.94461036,19.627,19.611,81.63306]
[1693786519137,4.94461036,19.625,19.611,81.63306]
[1693786525139,4.94461036,19.625,19.611,26.63306]
[1693786525439,4.94461036,19.623,19.61,26.35]
[1693786525646,26.35,19.62,19.604,11.7999]
[1693786525849,4.94461036,19.619,19.604,11.7999]
[1693786526139,59.94461036,19.619,19.604,11.7999]
[1693786527047,97.2,19.618,19.604,11.7999]
[1693786527231,4.94461036,19.617,19.604,11.7999]
[1693786527430,55.0,19.616,19.604,11.7999]
[1693786527629,4.94461036,19.615,19.604,11.7999]
[1693786527834,4.94461036,19.615,19.598,20.408899]
[1693786527835,55.0,19.614,19.598,20.408899]
[1693786528128,4.94461036,19.613,19.599,20.0]
[1693786528335,55.0,19.614,19.599,20.0]
[1693786528336,4.94461036,19.611,19.599,20.0]
[1693786528646,4.94461036,19.613,19.599,20.0]
[1693786528842,55.0,19.612,19.599,20.0]
[1693786529041,4.94461036,19.611,19.599,20.0]
[1693786529244,55.0,19.612,19.599,20.0]
[1693786530049,26.35,19.61,19.597,6.62092346]
[1693786530243,3.49050009,19.609,19.597,6.62092346]
[1693786530432,58.49050009,19.609,19.588,25.52904498]
[1693786531034,55.0,19.609,19.588,25.52904498]
[1693786531536,55.0,19.609,19.59,52.7]
[1693786531942,2.63502826,19.608,19.59,52.7]
[1693786532244,57.63502826,19.608,19.59,52.7]
[1693786532432,57.63502826,19.608,19.59,78.22904498]
[1693786532633,55.0,19.609,19.59,78.22904498]
[1693786532834,2.86227425,19.608,19.591,55.0]
[1693786544055,10.81827425,19.608,19.591,55.0]
[1693786544253,2.86227425,19.608,19.591,55.0]
[1693786545455,44.50801186,19.608,19.591,55.0]
[1693786545653,55.0,19.607,19.591,55.0]
[1693786547547,55.0,19.607,19.591,80.52904498]
[1693786550570,55.0,19.607,19.591,25.52904498]
[1693786550767,55.0,19.607,19.587,6.62430372]
[1693786550768,26.35,19.6,19.587,6.62430372]
[1693786551067,55.0,19.599,19.587,6.62430372]